[Event "European Women Blitz-ch 2024"]
[Site "Monaco"]
[Date "2025.01.10"]
[Round "10.13"]
[White "Calzetta Ruiz, Monica"]
[Black "Charkhalashvili, Inga"]
[Result "0-1"]
[Annotator "TA"]
[ECO "B01"]
[WhiteElo "2230"]
[BlackElo "2240"]
[PlyCount "78"]
[EventDate "2025.01.06"]
[EventType "swiss"]
[EventCountry "MNC"]
[SourceTitle "playchess.com"]
[Source "ChessBase"]
[SourceQuality "1"]
[TimeControl "180+2"]

{[%evp 9,78,71,75,62,75,64,63,59,65,59,61,44,52,47,49,52,87,52,81,72,71,65,87,30,65,43,211,206,192,34,30,0,48,-12,-21,-25,-17,-35,-29,-32,-34,-50,-41,-47,-30,-27,-29,-86,-85,-123,-122,-124,-114,-163,-168,-208,-221,-275,-270,-489,-490,-456,-428,-665,-626,-793,-662,-713,-700,-1569,-1516]} 1. e4 {[%emt 0:00:01]} d5 {[%emt 0:00:00]} 2. exd5 {[%emt 0:00:02]} Qxd5 {[%emt 0:00:02]} 3. Nf3 {[%emt 0:00:08]} Bg4 {[%emt 0:00:07]} 4. Be2 {[%emt 0:00:02]} c6 {[%emt 0:00:04]} 5. O-O {[%emt 0:00:06]} e6 {[%emt 0:00:04]} 6. d4 {[%emt 0:00:02]} Nf6 {[%emt 0:00:03]} 7. c4 {[%emt 0:00:03]} Qd8 {[%emt 0:00:01]} 8. Nc3 {[%emt 0:00:03]} Be7 {[%emt 0:00:01]} 9. Be3 {[%emt 0:00:02]} O-O {[%emt 0:00:02]} 10. Re1 {[%emt 0:00:05]} Nbd7 {[%emt 0:00:03]} 11. h3 {[%emt 0:00:02]} Bxf3 {[%emt 0:00:14]} 12. Bxf3 {[%emt 0:00:02]} Nb6 {[%emt 0:00:08]} 13. b3 {[%emt 0:00:02]} Rc8 {[%emt 0:00:11]} 14. Qc2 {[%emt 0:00:04]} Qc7 {[%emt 0:00:13]} 15. Rad1 {[%emt 0:00:07]} Rfd8 {[%emt 0:00:01]} 16. a4 {[%emt 0:00:30]} (16. g3 $16) 16... Bb4 {[%emt 0:00:03][%cal Ob6d5]} 17. Re2 $1 {[%emt 0:00:02]} c5 $2 {[%emt 0:00:08]} (17... Nbd7 $14) 18. Nb5 $1 $18 {[%emt 0:00:51][%csl LRa7,LRc7]} Qb8 {[%emt 0:00:08] [#]} 19. a5 $2 {[%emt 0:00:13]} Nbd7 $1 $14 {[%emt 0:00:12]} 20. dxc5 {[%emt 0:00:15][%cal Oc5c6] Black must now prevent c6!.} Nxc5 {[%emt 0:00:04]} (20... Ne5 $1 $11) 21. Bxc5 {[%emt 0:00:10]} (21. Bd2 $14 Na6 22. g3) 21... Bxc5 $11 {[%emt 0:00:02]} 22. Red2 {[%emt 0:00:03]} a6 {[%emt 0:00:11]} 23. Nc3 {[%emt 0:00:09]} Rxd2 {[%emt 0:00:03]} 24. Qxd2 {[%emt 0:00:02]} Bb4 {[%emt 0:00:01]} 25. Qd3 {[%emt 0:00:08]} Bxa5 {[%emt 0:00:01][%cal Ob7b5]} 26. Ne4 {[%emt 0:00:19]} Nxe4 {[%emt 0:00:07]} (26... Rd8 {simplifies} 27. Nxf6+ gxf6 28. Qe2 Rxd1+ 29. Qxd1 Bb6) 27. Qxe4 {[%emt 0:00:02]} b5 {[%emt 0:00:04]} 28. Rd7 {[%emt 0:00:02] [#]} (28. Qb7 $11 {keeps the balance.}) 28... bxc4 $1 $17 {[%emt 0:00:06]} 29. Rb7 {[%emt 0:00:10]} Qd6 {[%emt 0:00:06]} 30. bxc4 {[%emt 0:00:06]} Bb4 {[%emt 0:00:08]} 31. g3 {[%emt 0:00:06]} (31. Be2 $17) 31... Bc5 $19 {[%emt 0:00:01]} 32. Kg2 {[%emt 0:00:00] [#]} a5 $1 $40 {[%emt 0:00:07][%mdl 128] Black is out for blood.} 33. Bh5 {[%emt 0:00:02]} g6 {[%emt 0:00:02]} 34. Qf3 $2 {[%emt 0:00:01]} (34. Bf3) 34... Rf8 {[%emt 0:00:07]} (34... gxh5 35. Qxf7+ Kh8 36. Qxh7#) 35. Qf6 {[%emt 0:00:04]} Bd4 {[%emt 0:00:05]} ({Weaker is} 35... gxh5 36. Qg5+ Kh8 37. Qf6+ Kg8 38. Qg5+ Kh8 39. Qf6+ Kg8 $11) 36. Qf3 {[%emt 0:00:03]} (36. Qg5 $142) 36... gxh5 {[%emt 0:01:14]} 37. Qe4 {[%emt 0:00:03]} Bg7 {[%emt 0:00:00] and ...Qa6 should not be overlooked} 38. Rb5 {[%emt 0:00:03]} a4 {[%emt 0:00:00]} 39. Rxh5 {[%emt 0:00:01]} f5 {[%emt 0:00:00]} 0-1

[Event "European Women Blitz-ch 2024"]
[Site "Monaco"]
[Date "2025.01.10"]
[Round "10.14"]
[White "Kazarian, Anna-Maja"]
[Black "Stefanova, Antoaneta"]
[Result "0-1"]
[Annotator "TA"]
[ECO "C60"]
[WhiteElo "2206"]
[BlackElo "2418"]
[PlyCount "54"]
[EventDate "2025.01.06"]
[EventType "swiss"]
[EventCountry "MNC"]
[SourceTitle "playchess.com"]
[Source "ChessBase"]
[SourceQuality "1"]
[TimeControl "180+2"]

{[%evp 18,54,38,37,32,6,2,3,16,5,7,-7,0,-29,-21,-83,-73,-68,-77,-95,-47,-41,-43,-164,-157,-145,-148,-209,-207,-553,-540,-500,-522,-1178,-1129,-1202,-1202,-1170,-1157]} 1. e4 {[%emt 0:00:01]} e5 {[%emt 0:00:00]} 2. Nf3 {[%emt 0:00:01]} Nc6 {[%emt 0:00:01]} 3. Bb5 {[%emt 0:00:01]} a6 {[%emt 0:00:01]} 4. Ba4 {[%emt 0:00:00]} d6 {[%emt 0:00:01]} 5. c3 {[%emt 0:00:01]} Bd7 {[%emt 0:00:07]} 6. O-O {[%emt 0:00:02]} Nf6 {[%emt 0:00:03]} 7. Re1 {[%emt 0:00:01]} g6 {[%emt 0:00:01]} 8. h3 {[%emt 0:00:20]} Bg7 {[%emt 0:00:02]} 9. d4 {[%emt 0:00:04]} O-O {[%emt 0:00:09]} 10. Nbd2 {[%emt 0:00:22]} Re8 {[%emt 0:00:03]} 11. d5 {[%emt 0:00:15]} Ne7 {[%emt 0:00:01]} 12. Bxd7 {[%emt 0:00:01]} Nxd7 {[%emt 0:00:05] The position is equal.} 13. Nf1 {[%emt 0:00:06]} h6 {[%emt 0:00:13]} 14. g4 {[%emt 0:00:09]} f5 {[%emt 0:00:07]} 15. gxf5 {[%emt 0:00:17]} gxf5 {[%emt 0:00:01]} 16. exf5 {[%emt 0:00:08]} (16. Kh2 $11) 16... Nxf5 $17 {[%emt 0:00:05]} 17. Ng3 {[%emt 0:00:01]} Rf8 {[%emt 0:00:18]} 18. Kh2 {[%emt 0:00:27]} Nxg3 {[%emt 0:00:23]} (18... Qf6 $17 {...Nxg3 is the strong threat.} 19. Ne4 Qf7) 19. fxg3 $15 {[%emt 0:00:01]} Qf6 {[%emt 0:00:06]} 20. Rf1 {[%emt 0:00:12] This costs White the game.} (20. Kg2 $1 $15) 20... e4 $19 {[%emt 0:00:07]} 21. Nd2 {[%emt 0:00:01]} Qe5 $36 {[%emt 0:00:07][%mdl 2048] [#] Strongly threatening ...e3. White is under strong pressure.} 22. Rxf8+ {[%emt 0:01:06]} (22. Nc4 $17 Rxf1 23. Qxf1 Qxd5 24. Bf4) 22... Rxf8 {[%emt 0:00:03]} 23. Qe2 {[%emt 0:00:01] Prevents Rf2+} (23. Nf1 {is more resistant.}) 23... e3 {[%emt 0:00:15] Black is clearly winning.} 24. Nf3 {[%emt 0:00:03]} Qxd5 {[%emt 0:00:05]} 25. Kg2 {[%emt 0:00:07]} Ne5 {[%emt 0:00:02][%cal Re5f3]} 26. c4 {[%emt 0:00:02]} Qxf3+ {[%emt 0:00:08]} 27. Qxf3 {[%emt 0:00:01]} Rxf3 {[%emt 0:00:03] Weighted Error Value: White=0.89/Black=0.04 (flawless) .  Mistake:       	White=4     	Black=1      Inaccurate:     	White=3     	---        OK:         	White=4     	Black=3      Best:        	White=2     	Black=4} 0-1

[Event "European Women Blitz-ch 2024"]
[Site "Monaco"]
[Date "2025.01.10"]
[Round "10.15"]
[White "Narva, Mai"]
[Black "Dornbusch, Tatiana"]
[Result "1-0"]
[Annotator "TA"]
[ECO "C70"]
[WhiteElo "2398"]
[BlackElo "2234"]
[PlyCount "74"]
[EventDate "2025.01.06"]
[EventType "swiss"]
[EventCountry "MNC"]
[SourceTitle "playchess.com"]
[Source "ChessBase"]
[SourceQuality "1"]
[TimeControl "180+2"]

{[%evp 9,74,37,30,27,32,18,27,32,32,25,81,56,48,29,130,86,97,10,70,64,147,136,129,129,311,308,366,366,549,516,568,556,602,609,626,193,187,194,183,73,67,70,62,-370,0,0,0,0,0,0,0,0,0,0,0,-19,-8,-16,-12,-35,32,28,225,219,314,104,94]} 1. e4 {[%emt 0:00:02]} e5 {[%emt 0:00:01]} 2. Nf3 {[%emt 0:00:01]} Nc6 {[%emt 0:00:01]} 3. Bb5 {[%emt 0:00:02]} a6 {[%emt 0:00:01]} 4. Ba4 {[%emt 0:00:01]} Bc5 {[%emt 0:00:04]} 5. O-O {[%emt 0:00:06]} Nge7 {[%emt 0:00:03] [#]} 6. Nxe5 $1 {[%emt 0:00:08]} Nxe5 {[%emt 0:00:19]} 7. d4 {[%emt 0:00:02]} b5 {[%emt 0:01:14]} 8. Bb3 {[%emt 0:00:13]} Bxd4 $1 {[%emt 0:00:07]} 9. Qxd4 {[%emt 0:00:02]} N7c6 {[%emt 0:00:12]} (9... d6 $1 $11) 10. Qd5 {[%emt 0:00:33]} O-O {[%emt 0:00:08]} 11. f4 {[%emt 0:00:11][%cal Bf2f4,Bf4f5][%mdl 32]} Ng6 {[%emt 0:00:08]} (11... Ng4 $1 $11 {remains equal.}) 12. Nc3 {[%emt 0:00:09]} Bb7 {[%emt 0:00:06]} 13. Qd3 {[%emt 0:00:11] White is more active.} (13. Qd2 $16) 13... d6 {[%emt 0:00:02]} (13... Na5 $11) 14. Qg3 $36 {[%emt 0:00:07][%mdl 2048] White has the initiative.} Qh4 {[%emt 0:00:05]} (14... Kh8 $14) 15. Qxh4 $1 $16 {[%emt 0:00:04]} Nxh4 {[%emt 0:00:01] [#]} 16. f5 $1 {[%emt 0:00:06]} Ne5 $2 {[%emt 0:00:04]} (16... Nd4 $16) 17. Bg5 $18 {[%emt 0:00:04]} b4 {[%emt 0:00:11]} 18. Nd5 {[%emt 0:00:08]} (18. Bxh4 bxc3 19. bxc3 a5 $11 (19... Bxe4 20. f6 $14)) 18... c6 {[%emt 0:00:19]} (18... Nxg2 {is a better defense.} 19. Kxg2 a5) 19. Nb6 {[%emt 0:00:10]} (19. Bxh4 cxd5 20. f6 (20. Bxd5 Bxd5 21. exd5 Rfc8 $15) (20. exd5 a5 $16) 20... dxe4 $11) 19... Rab8 {[%emt 0:00:11]} 20. Bxh4 {[%emt 0:00:03]} Rfe8 {[%emt 0:00:04][%cal Bf8e8,Be8e4,Be4h4,Bh4c4,Bc4c3][%mdl 32]} 21. Rad1 {[%emt 0:00:07]} a5 {[%emt 0:00:08]} 22. Nc4 $2 {[%emt 0:00:31]} (22. Rxd6 Ba6 23. Nd7 Bxf1 24. Nxb8 (24. Kxf1 Ra8 $18)) 22... Nxc4 {[%emt 0:00:07]} 23. Bxc4 {[%emt 0:00:09]} Rxe4 {[%emt 0:00:00]} 24. Bb3 {[%emt 0:00:06]} (24. b3 $1 $18 Rxh4 25. Rxd6) 24... Rxh4 $16 {[%emt 0:00:02]} 25. Rxd6 {[%emt 0:00:01]} c5 {[%emt 0:00:04]} 26. Bd5 $2 {[%emt 0:00:15][%mdl 8192]} (26. Rfd1 $14 {keeps the upper hand.} Rf8 27. Rd7) 26... Bxd5 $2 {[%emt 0:00:04]} (26... Rd4 $19 27. Bxb7 Rxd6) 27. Rxd5 $19 {[%emt 0:00:01][%mdl 4096] Endgame KRR-KRR} Rc4 {[%emt 0:00:02]} 28. Rf2 {[%emt 0:00:03]} f6 {[%emt 0:00:05]} 29. Re2 {[%emt 0:00:02]} Kf8 {[%emt 0:00:02]} 30. b3 {[%emt 0:00:17]} Rc3 {[%emt 0:00:01]} 31. Kf2 {[%emt 0:00:01]} Re8 {[%emt 0:00:00] and ...Rxe2+ should not be overlooked} 32. Rdd2 {[%emt 0:00:02]} Rxe2+ {[%emt 0:00:04]} 33. Kxe2 {[%emt 0:00:01]} Ke7 {[%emt 0:00:01]} 34. Kd1 {[%emt 0:00:03]} h6 {[%emt 0:00:04]} ({Better is} 34... Re3 $15) 35. Rd5 $14 {[%emt 0:00:04]} Ke8 $2 {[%emt 0:00:04] [#]} (35... h5 $11) 36. Kd2 $1 $18 {[%emt 0:00:01] Hoping for a4.} Ke7 {[%emt 0:00:01]} (36... c4 $142 37. Rxa5 cxb3 38. axb3 Rc7) 37. a4 $2 {[%emt 0:00:02]} (37. Rd3 $18 {and the rest is easy.}) 37... c4 {[%emt 0:00:06]} 1-0

[Event "European Women Blitz-ch 2024"]
[Site "Monaco"]
[Date "2025.01.10"]
[Round "10.16"]
[White "Galvan Cipriani, Viviana"]
[Black "Injac, Teodora"]
[Result "0-1"]
[Annotator "TA"]
[ECO "A36"]
[WhiteElo "2098"]
[BlackElo "2453"]
[PlyCount "110"]
[EventDate "2025.01.06"]
[EventType "swiss"]
[EventCountry "MNC"]
[SourceTitle "playchess.com"]
[Source "ChessBase"]
[SourceQuality "1"]
[TimeControl "180+2"]

{[%evp 22,110,0,0,-2,0,48,34,46,48,122,124,159,120,180,187,197,198,171,193,165,64,175,163,189,182,199,172,161,57,113,74,78,-190,-114,-150,-163,-160,-164,-195,-190,-327,-315,-507,-482,-491,-483,-565,-510,-512,-447,-547,-556,-546,-541,-481,-456,-427,-427,-826,-163,-559,-567,-525,-452,-892,-414,-863,-816,-791,-381,-365,0,-312,-16,-354,-277,-761,-742,-29970,-29973,-29982,-29983,-29983,-29984,-29986,-29987,-29987,-29988,-29996,-29997]} 1. c4 {[%emt 0:00:01]} Nf6 {[%emt 0:00:04]} 2. Nc3 {[%emt 0:00:02]} g6 {[%emt 0:00:02]} 3. g3 {[%emt 0:00:01]} Bg7 {[%emt 0:00:00]} 4. Bg2 {[%emt 0:00:01]} O-O {[%emt 0:00:02]} 5. e4 {[%emt 0:00:01]} d6 {[%emt 0:00:02]} 6. Nge2 {[%emt 0:00:02]} c5 {[%emt 0:00:02]} 7. O-O {[%emt 0:00:03]} Nc6 {[%emt 0:00:00]} 8. d3 {[%emt 0:00:04]} a6 {[%emt 0:00:04]} 9. h3 {[%emt 0:00:04]} Rb8 {[%emt 0:00:00]} 10. a4 {[%emt 0:00:12]} Ne8 {[%emt 0:00:02]} 11. Be3 {[%emt 0:00:02]} Nd4 {[%emt 0:00:05]} 12. Rb1 {[%emt 0:00:07]} Nc7 {[%emt 0:00:11]} 13. b4 {[%emt 0:00:07]} Nce6 {[%emt 0:00:08]} (13... b5 $11 {deserves consideration.}) 14. Kh2 {[%emt 0:00:19]} cxb4 {[%emt 0:00:45]} 15. Rxb4 {[%emt 0:00:02]} Qa5 {[%emt 0:00:00]} (15... a5 $14 16. Rb1 Bd7) 16. Nd5 $16 {[%emt 0:00:17]} Re8 {[%emt 0:00:15] [#]} 17. f4 $1 {[%emt 0:00:32][%cal Bf2f4,Bf4f5][%mdl 32]} Nxe2 {[%emt 0:00:04]} (17... b5 $16) 18. Bb6 $1 $36 {[%emt 0:00:53][%mdl 2048] White is in control.} (18. Qxe2 Nc5 $16) 18... Nc3 {[%emt 0:00:05]} 19. Qe1 {[%emt 0:00:39]} (19. Bxa5 Nxd1 20. Rxd1 h5) 19... Qxb4 {[%emt 0:00:20]} 20. Nxb4 {[%emt 0:00:01]} Nxa4 {[%emt 0:00:01]} 21. Nd5 {[%emt 0:00:05]} (21. Ba7 $18 Ra8 22. Bf2) 21... Bd7 {[%emt 0:00:09]} (21... Nxb6 $14 22. Nxb6 Nd4) 22. f5 {[%emt 0:00:02]} Nec5 {[%emt 0:00:18]} 23. Bxc5 {[%emt 0:00:03]} Nxc5 {[%emt 0:00:01]} 24. Qe3 {[%emt 0:00:02] and d4 should not be overlooked} Bc6 {[%emt 0:00:41]} 25. Nb6 {[%emt 0:00:04]} ({White should try} 25. e5 $18) 25... Nb3 {[%emt 0:00:08] [#]} (25... Nd7 $14) 26. f6 $1 {[%emt 0:00:04][%mdl 512]} Bxf6 {[%emt 0:00:05]} 27. Nd5 $2 {[%emt 0:00:01][%mdl 8192] [#]} (27. Rxf6 $16 {keeps the pressure on.} exf6 28. d4) 27... Bg7 {[%emt 0:00:09]} (27... Bxd5 $1 $19 28. cxd5 b5) 28. Rb1 {[%emt 0:00:02]} Nd4 {[%emt 0:00:03]} 29. Nb6 {[%emt 0:00:03]} Be5 {[%emt 0:00:05]} 30. Kh1 {[%emt 0:00:02]} h5 {[%emt 0:00:01]} 31. g4 {[%emt 0:00:02]} (31. Bf3 $142) 31... hxg4 $19 {[%emt 0:00:01]} 32. hxg4 $2 {[%emt 0:00:01]} (32. Qh6 {was called for.}) 32... Kg7 {[%emt 0:00:00]} 33. Kg1 {[%emt 0:00:01]} Rh8 {[%emt 0:00:02]} 34. Nd5 {[%emt 0:00:04]} e6 {[%emt 0:00:07]} 35. Nf4 {[%emt 0:00:02]} Rh4 {[%emt 0:00:03]} 36. Ne2 {[%emt 0:00:02]} Nxe2+ {[%emt 0:00:06]} 37. Qxe2 {[%emt 0:00:01]} Bd4+ {[%emt 0:00:00]} 38. Kf1 {[%emt 0:00:01]} Rbh8 {[%emt 0:00:01][%cal Oh4h1]} 39. Qf3 {[%emt 0:00:02]} e5 {[%emt 0:00:03]} 40. Ke2 {[%emt 0:00:03]} (40. Ke1 $142 Bc3+ 41. Kf1) 40... Rh2 $2 {[%emt 0:00:01]} (40... Bd7 41. Ke1 Bxg4 (41... Rxg4 $2 42. Rxb7 Rh2 43. Rxd7 $19)) 41. Rh1 $2 {[%emt 0:00:02]} (41. Rf1 {was the crucial defense.} Rf8 42. Qf6+ Kg8 43. Kf3) 41... Rxh1 {[%emt 0:00:01]} 42. Bxh1 {[%emt 0:00:01]} Bd7 {[%emt 0:00:02]} 43. Bg2 {[%emt 0:00:03]} (43. g5 $142 Rh2+ 44. Bg2) 43... b5 {[%emt 0:00:01]} (43... Rh4 $142 44. Qf1 Bxg4+ 45. Kd2 Rh2) 44. cxb5 {[%emt 0:00:02]} (44. g5 $142 Kg8 45. cxb5) 44... axb5 {[%emt 0:00:01]} (44... Bxb5 45. g5 $17) 45. g5 {[%emt 0:00:01]} Be6 {[%emt 0:00:04]} (45... Ra8 $142 46. Qf6+ Kg8) 46. Qf6+ {[%emt 0:00:02]} Kh7 $2 {[%emt 0:00:00]} ({Black should try} 46... Kg8 $19 47. Qd8+ Kh7) 47. Qe7 $2 {[%emt 0:00:05][%mdl 8192]} (47. Bh3 $1 $11 Bb3 48. Bd7) 47... Bc5 $2 {[%emt 0:00:11]} (47... Ra8 $19 {White must now prevent ...Ra2+.} 48. Bh3 Ra2+ (48... Bxh3 49. Qxf7+ Kh8 50. Qf6+ Kh7 51. Qf7+ Kh8 52. Qf6+ Kh7 53. Qf7+ $11) 49. Kd1 Ra7 (49... Bxh3 $2 {perishes.} 50. Qxf7+ Kh8 51. Qxa2 $18)) 48. Qb7 $2 {[%emt 0:00:02][%mdl 8192]} (48. Bh3 $1 $11 {and White has nothing to worry.} Ba2 49. Bd7) 48... b4 {[%emt 0:00:00]} 49. Kf3 $2 {[%emt 0:00:02]} (49. Bh3 Ba2 (49... Bxh3 50. Qxf7#) 50. Kf3) 49... Kg7 {[%emt 0:00:00] ( -> ...b3)} 50. Kg3 {[%emt 0:00:01]} b3 {[%emt 0:00:00]} 51. Qb5 {[%emt 0:00:02]} Bd4 {[%emt 0:00:00]} 52. Bf3 {[%emt 0:00:02]} b2 {[%emt 0:00:00]} 53. Bg4 {[%emt 0:00:01]} Bxg4 {[%emt 0:00:03]} 54. Kxg4 {[%emt 0:00:01]} Rh1 {[%emt 0:00:02]} 55. Qd7 {[%emt 0:00:05]} b1=Q {[%emt 0:00:04]} 0-1

[Event "European Women Blitz-ch 2024"]
[Site "Monaco"]
[Date "2025.01.10"]
[Round "10.17"]
[White "Guichard, Pauline"]
[Black "Javakhishvili, Lela"]
[Result "0-1"]
[Annotator "TA"]
[ECO "D63"]
[WhiteElo "2357"]
[BlackElo "2426"]
[PlyCount "167"]
[EventDate "2025.01.06"]
[EventType "swiss"]
[EventCountry "MNC"]
[SourceTitle "playchess.com"]
[Source "ChessBase"]
[SourceQuality "1"]
[TimeControl "180+2"]

{[%evp 69,167,-35,-41,-30,0,0,0,0,0,0,33,28,27,24,30,6,36,-561,-556,-564,-564,-564,-556,-549,-549,-542,-537,-543,-431,-547,-424,-1128,-1128,-1128,-1128,-1120,-1120,-1120,-722,-715,-715,-708,-708,-693,-687,-687,-687,-686,-672,-672,-624,-487,-433,-426,-400,-29963,-29964,-29962,-29966,-29969,-29969,-29966,-29956,-29963,-5700,-5692,-1810,-29978,-29979,-29980,-29980,-29980,-29980,-29982,-29983,-29983,-29984,-29984,-29980,-29980,-29981,-29981,-29982,-29982,-29982,-29982,-29983,-29983,-29982,-29982,-29982,-29983,-29983,-29983,-29984,-29985,-29986,-29986,-29986,-29986]} 1. d4 {[%emt 0:00:01]} Nf6 {[%emt 0:00:01]} 2. c4 {[%emt 0:00:01]} e6 {[%emt 0:00:01]} 3. Nc3 {[%emt 0:00:01]} d5 {[%emt 0:00:02]} 4. Nf3 {[%emt 0:00:02]} Nbd7 {[%emt 0:00:07]} 5. Bg5 {[%emt 0:00:09]} Be7 {[%emt 0:00:03]} 6. e3 {[%emt 0:00:02]} h6 {[%emt 0:00:01]} 7. Bh4 {[%emt 0:00:05]} O-O {[%emt 0:00:02]} 8. Rc1 {[%emt 0:00:04]} a6 {[%emt 0:00:04]} 9. c5 {[%emt 0:00:08]} c6 {[%emt 0:00:03]} 10. Bd3 {[%emt 0:00:06]} Re8 {[%emt 0:00:02]} 11. O-O {[%emt 0:00:05]} e5 {[%emt 0:00:10]} 12. dxe5 {[%emt 0:00:17]} Nh7 {[%emt 0:00:05]} 13. Bxe7 {[%emt 0:00:12]} Qxe7 {[%emt 0:00:02]} 14. Qc2 {[%emt 0:00:07]} Ng5 {[%emt 0:00:18]} 15. Nxg5 {[%emt 0:00:04]} hxg5 {[%emt 0:00:01]} 16. f4 {[%emt 0:00:20]} Qxc5 {[%emt 0:00:03]} 17. Kh1 {[%emt 0:00:09]} Nf8 {[%emt 0:00:41]} 18. Qe2 {[%emt 0:00:02]} Qe7 {[%emt 0:00:17]} 19. Qh5 {[%emt 0:00:10]} gxf4 {[%emt 0:00:17]} 20. exf4 {[%emt 0:00:48]} Qe6 {[%emt 0:00:05]} 21. Rce1 {[%emt 0:00:13]} Qg4 {[%emt 0:00:16]} 22. Qxg4 {[%emt 0:00:04]} Bxg4 {[%emt 0:00:01]} 23. h3 {[%emt 0:00:03]} Bd7 {[%emt 0:00:03]} 24. f5 {[%emt 0:00:37]} Rad8 {[%emt 0:00:12]} 25. Na4 {[%emt 0:00:00]} Bc8 {[%emt 0:00:07]} 26. Nb6 {[%emt 0:00:00]} Nd7 {[%emt 0:00:06]} 27. Nxd7 {[%emt 0:00:00]} Rxd7 {[%emt 0:00:02]} 28. Re2 {[%emt 0:00:00]} Rde7 {[%emt 0:00:03]} 29. Rfe1 {[%emt 0:00:00]} c5 {[%emt 0:00:00]} 30. a4 {[%emt 0:00:02]} c4 {[%emt 0:00:02]} 31. Bb1 {[%emt 0:00:01]} d4 {[%emt 0:00:02]} 32. Re4 {[%emt 0:00:01]} Rd8 {[%emt 0:00:15]} 33. g4 {[%emt 0:00:02]} d3 {[%emt 0:00:03]} 34. Rxc4 {[%emt 0:00:03]} d2 {[%emt 0:00:01]} 35. Rd1 {[%emt 0:00:00]} Rxe5 {[%emt 0:00:01]} 36. Kg2 $1 {[%emt 0:00:10]} Re1 {[%emt 0:00:05]} 37. Bc2 {[%emt 0:00:01]} b5 {[%emt 0:00:05]} 38. axb5 {[%emt 0:00:03]} Bb7+ {[%emt 0:00:01]} ({Much worse is} 38... Rxd1 $6 39. Bxd1 axb5 40. Rc5 $14) 39. Kf2 {[%emt 0:00:02]} axb5 {[%emt 0:00:03]} 40. Rc7 {[%emt 0:00:01]} Rxd1 {[%emt 0:00:04]} 41. Bxd1 {[%emt 0:00:01]} Be4 {[%emt 0:00:02]} 42. Ke2 {[%emt 0:00:04]} Bg2 {[%emt 0:00:02]} (42... Bd3+ {simplifies} 43. Kxd2 Bxf5+ 44. Kc1 Be4) 43. Bb3 $2 {[%emt 0:00:01][%mdl 8192]} (43. Rc3 $14 {keeps the upper hand.}) 43... Bxh3 $19 {[%emt 0:00:04]} 44. Bxf7+ {[%emt 0:00:03]} Kf8 {[%emt 0:00:02]} 45. Bb3 {[%emt 0:00:02]} Bxg4+ {[%emt 0:00:01]} 46. Ke3 {[%emt 0:00:01]} d1=Q {[%emt 0:00:05]} 47. Bxd1 {[%emt 0:00:01]} Bxd1 {[%emt 0:00:03]} 48. Rc5 {[%emt 0:00:01]} Ba4 {[%emt 0:00:04]} 49. Kf4 {[%emt 0:00:04]} Rd2 {[%emt 0:00:03]} 50. b3 {[%emt 0:00:04]} (50. Rc8+ $142 Kf7 51. Rc7+ Kg8 52. b4) 50... Bxb3 $19 {[%emt 0:00:04]} 51. Rxb5 {[%emt 0:00:00]} Bf7 {[%emt 0:00:03]} 52. Rb8+ {[%emt 0:00:04]} Be8 {[%emt 0:00:01]} 53. Kg5 {[%emt 0:00:02]} Rg2+ {[%emt 0:00:01]} 54. Kf4 {[%emt 0:00:00]} Rf2+ {[%emt 0:00:04]} 55. Ke5 {[%emt 0:00:01]} Rf1 {[%emt 0:00:02]} 56. Rb7 {[%emt 0:00:02]} Re1+ {[%emt 0:00:04]} 57. Kf4 {[%emt 0:00:01]} Re7 {[%emt 0:00:01]} 58. Rb6 {[%emt 0:00:05]} Kf7 {[%emt 0:00:01]} 59. Kg5 {[%emt 0:00:01]} Bd7 {[%emt 0:00:04]} 60. Rb7 {[%emt 0:00:02]} Bc6 {[%emt 0:00:02]} 61. Rb6 {[%emt 0:00:01]} Be4 {[%emt 0:00:03]} 62. f6 {[%emt 0:00:04]} (62. Rb4 $19) 62... Re5+ {[%emt 0:00:01]} 63. Kf4 {[%emt 0:00:00]} gxf6 {[%emt 0:00:01]} 64. Ra6 {[%emt 0:00:03]} Kg6 {[%emt 0:00:15]} 65. Ra1 {[%emt 0:00:01]} Bd5 {[%emt 0:00:00]} 66. Rg1+ {[%emt 0:00:03]} Rg5 {[%emt 0:00:00]} (66... Kf7 $142 67. Rb1 Re4+ 68. Kf5 Re3 69. Rb6 Rf3+ 70. Kg4 Ke7 71. Rb8 Rb3 72. Rh8 Bc6 73. Rh2 Kd6 74. Rc2 Be4 75. Rc8 Bc6 76. Rh8 Ke5 77. Rd8 f5+ 78. Kh4 Rb2 79. Kh5 Rh2+ 80. Kg5 Rg2+ 81. Kh4 Rg4+ 82. Kh3 Kf4 83. Rh8 Bf3 84. Rc8 Rg1 85. Rc2 Ra1 86. Rb2 Ra8 87. Kh2 Rh8+ 88. Kg1 Rh1+ 89. Kf2 Rh2+ 90. Kg1 Rxb2 91. Kf1 Kg3 92. Ke1 Bg4 93. Kf1 Rb1#) 67. Rc1 {[%emt 0:00:02]} Rf5+ {[%emt 0:00:00]} 68. Kg4 {[%emt 0:00:01]} Re5 {[%emt 0:00:00]} 69. Rc7 {[%emt 0:00:02]} Re4+ {[%emt 0:00:00]} 70. Kg3 {[%emt 0:00:01]} Kf5 {[%emt 0:00:00]} 71. Rc5 {[%emt 0:00:02]} Ke5 {[%emt 0:00:00]} 72. Rc8 {[%emt 0:00:01]} f5 {[%emt 0:00:00]} 73. Re8+ {[%emt 0:00:01]} Be6 {[%emt 0:00:00]} 74. Kf3 {[%emt 0:00:02]} Rd4 {[%emt 0:00:01]} 75. Re7 {[%emt 0:00:02]} f4 {[%emt 0:00:03]} 76. Re8 {[%emt 0:00:02]} Ra4 {[%emt 0:00:01]} 77. Kf2 {[%emt 0:00:04]} Ra3 {[%emt 0:00:01]} 78. Ke2 {[%emt 0:00:03]} f3+ {[%emt 0:00:03]} 79. Kf2 {[%emt 0:00:01]} Rb3 {[%emt 0:00:03]} 80. Re7 {[%emt 0:00:03]} Kf6 {[%emt 0:00:02]} 81. Re8 {[%emt 0:00:02]} Bd5 {[%emt 0:00:00]} 82. Rf8+ {[%emt 0:00:01]} Ke5 {[%emt 0:00:01]} 83. Kg3 {[%emt 0:00:02]} Kd4 {[%emt 0:00:02]} 84. Rd8 {[%emt 0:00:05]} 0-1